Workbook

Sheet Сбор
A1: дата | B1: фамилия | C1: №детали | D1: №опер. | E1: Нор врем | F1: Выполнил | G1: % выпол. от труд. на изд. | H1: отраб время | I1: Время простоя | J1: 1 | K1: 2 | L1: 3 | M1: 4 | N1: 5 | O1: 6 | P1: 7 | Q1: 8 | R1: 9 | S1: 10 | T1: 11 | U1: 12 | V1: 13 | W1: 14 | X1: 15 | Y1: время работы
A2: 05.11.2014 | B2: Косарев | C2: 301224.023 | D2: 020 | E2: 8.6 | F2: 30 | H2: 8 | I2: 0 | J2: 0 | K2: 0 | L2: 0 | M2: 0 | N2: 0 | O2: 0 | P2: 0 | Q2: 0 | R2: 0 | S2: 0 | T2: 0 | U2: 0 | V2: 0 | W2: 0 | X2: 0 | Y2: 8
A3: 05.11.2014 | B3: Косарев | C3: 304552.058-01 | D3: 060 | E3: 1.265 | F3: 200
A4: 05.11.2014 | B4: Геворкян | C4: 753183.001 | D4: 020 | E4: 1.3 | F4: 60 | H4: 8 | I4: 0 | J4: 0 | K4: 0 | L4: 0 | M4: 0 | N4: 0 | O4: 0 | P4: 0 | Q4: 0 | R4: 0 | S4: 0 | T4: 0 | U4: 0 | V4: 0 | W4: 0 | X4: 0 | Y4: 8
A5: 05.11.2014 | B5: Геворкян | C5: 753183.001 | D5: 030 | E5: 6 | F5: 60
A6: 06.11.2014 | B6: Косарев | C6: 304552.058-01 | D6: 060 | E6: 1.265 | F6: 380 | H6: 8 | I6: 0 | J6: 0 | K6: 0 | L6: 0 | M6: 0 | N6: 0 | O6: 0 | P6: 0 | Q6: 0 | R6: 0 | S6: 0 | T6: 0 | U6: 0 | V6: 0 | W6: 0 | X6: 0 | Y6: 8
A7: 06.11.2014 | B7: Геворкян | C7: 753183.001 | D7: 020 | E7: 1.3 | F7: 60 | H7: 8 | I7: 0 | J7: 0 | K7: 0 | L7: 0 | M7: 0 | N7: 0 | O7: 0 | P7: 0 | Q7: 0 | R7: 0 | S7: 0 | T7: 0 | U7: 0 | V7: 0 | W7: 0 | X7: 0 | Y7: 8
A8: 06.11.2014 | B8: Геворкян | C8: 753183.001 | D8: 030 | E8: 6 | F8: 60
A9: 10.11.2014 | B9: Михеева | C9: 711143.003 | D9: 020 | E9: 0.2696 | F9: 253 | H9: 8 | I9: 0 | J9: 0 | K9: 0 | L9: 0 | M9: 0 | N9: 0 | O9: 0 | P9: 0 | Q9: 0 | R9: 0 | S9: 0 | T9: 0 | U9: 0 | V9: 0 | W9: 0 | X9: 0 | Y9: 8
A10: 10.11.2014 | B10: Михеева | C10: 304591.042-01 | D10: 010 | E10: 0.6024 | F10: 600
A11: 10.11.2014 | B11: Михеева | C11: 745261.058 | D11: 030 | E11: 0.1466 | F11: 1500
A12: 10.11.2014 | B12: БригадаШтамп | C12: 758491.320 | D12: 020 | E12: 0.02 | F12: 33000 | H12: 20 | I12: 0 | J12: 0 | K12: 0 | L12: 0 | M12: 0 | N12: 0 | O12: 0 | P12: 0 | Q12: 0 | R12: 0 | S12: 0 | T12: 0 | U12: 0 | V12: 0 | W12: 0 | X12: 0 | Y12: 20
A13: 10.11.2014 | B13: БригадаШтамп | C13: 745247.001-01 | D13: 040 | E13: 0.128 | F13: 2578
A14: 10.11.2014 | B14: БригадаШтамп | C14: 741136.003 | D14: 020 | E14: 0.13 | F14: 2970
A15: 10.11.2014 | B15: БригадаШтамп | C15: 745261.058 | D15: 030 | E15: 0.1466 | F15: 1000
A16: 10.11.2014 | B16: БригадаСверл | C16: 303732.001 | D16: 070 (020) | E16: 3.3182 | F16: 141 | H16: 24 | I16: 0 | J16: 0 | K16: 0 | L16: 0 | M16: 0 | N16: 0 | O16: 0 | P16: 0 | Q16: 0 | R16: 0 | S16: 0 | T16: 0 | U16: 0 | V16: 0 | W16: 0 | X16: 0 | Y16: 24
A17: 10.11.2014 | B17: БригадаСверл | C17: 713142.006 | D17: 030 | E17: 1.4 | F17: 162
A18: 10.11.2014 | B18: БригадаСверл | C18: 741424.097 | D18: 070 (040) | E18: 2.612 | F18: 144
A19: 10.11.2014 | B19: Алехичев | C19: 303719.003 | D19: 060 (020) | E19: 7.3578 | F19: 40 | H19: 8 | I19: 0 | J19: 0 | K19: 0 | L19: 0 | M19: 0 | N19: 0 | O19: 0 | P19: 0 | Q19: 0 | R19: 0 | S19: 0 | T19: 0 | U19: 0 | V19: 0 | W19: 0 | X19: 0 | Y19: 8
A20: 10.11.2014 | B20: Александрова | C20: 715151.010.. | D20: 020 | E20: 5.6 | F20: 50 | G20: 0.5 | H20: 8 | I20: 0 | J20: 0 | K20: 0 | L20: 0 | M20: 0 | N20: 0 | O20: 0 | P20: 0 | Q20: 0 | R20: 0 | S20: 0 | T20: 0 | U20: 0 | V20: 0 | W20: 0 | X20: 0 | Y20: 8
A21: 10.11.2014 | B21: Акимов | C21: 715312.067 | D21: 030 | E21: 2.73 | F21: 76 | H21: 5 | I21: 3 | J21: 0 | K21: 0 | L21: 3 | M21: 0 | N21: 0 | O21: 0 | P21: 0 | Q21: 0 | R21: 0 | S21: 0 | T21: 0 | U21: 0 | V21: 0 | W21: 0 | X21: 0 | Y21: 8
A22: 10.11.2014 | B22: Иващенко | C22: 741354.083 | D22: 050 | E22: 0.8 | F22: 600 | H22: 8 | I22: 0 | J22: 0 | K22: 0 | L22: 0 | M22: 0 | N22: 0 | O22: 0 | P22: 0 | Q22: 0 | R22: 0 | S22: 0 | T22: 0 | U22: 0 | V22: 0 | W22: 0 | X22: 0 | Y22: 8
A23: 10.11.2014 | B23: Лыгин | C23: 753183.001 | D23: 040 | E23: 2 | F23: 180 | H23: 8 | I23: 0 | J23: 0 | K23: 0 | L23: 0 | M23: 0 | N23: 0 | O23: 0 | P23: 0 | Q23: 0 | R23: 0 | S23: 0 | T23: 0 | U23: 0 | V23: 0 | W23: 0 | X23: 0 | Y23: 8
A24: 10.11.2014 | B24: Лыгин | C24: 753183.001 | D24: 050 | E24: 0.16 | F24: 180
A25: 10.11.2014 | B25: Лыгин | C25: 753183.001 | D25: 060 | E25: 1.7 | F25: 0
A26: 10.11.2014 | B26: Лыгин | C26: 753183.001 | D26: 070 | E26: 0.2 | F26: 0
A27: 10.11.2014 | B27: Геворкян | C27: 753183.001 | D27: 020 | E27: 1.3 | F27: 60 | H27: 8 | I27: 0 | J27: 0 | K27: 0 | L27: 0 | M27: 0 | N27: 0 | O27: 0 | P27: 0 | Q27: 0 | R27: 0 | S27: 0 | T27: 0 | U27: 0 | V27: 0 | W27: 0 | X27: 0 | Y27: 8
A28: 10.11.2014 | B28: Геворкян | C28: 753183.001 | D28: 030 | E28: 6 | F28: 60
A29: 10.11.2014 | B29: Абросимов | C29: 715311.037 | D29: 020 | E29: 6.325 | F29: 76 | H29: 8 | I29: 0 | J29: 0 | K29: 0 | L29: 0 | M29: 0 | N29: 0 | O29: 0 | P29: 0 | Q29: 0 | R29: 0 | S29: 0 | T29: 0 | U29: 0 | V29: 0 | W29: 0 | X29: 0 | Y29: 8
A30: 10.11.2014 | B30: Подорванов | C30: 715345.013 | D30: 020 | E30: 5.23 | F30: 86 | H30: 7 | I30: 1 | J30: 0 | K30: 0 | L30: 1 | M30: 0 | N30: 0 | O30: 0 | P30: 0 | Q30: 0 | R30: 0 | S30: 0 | T30: 0 | U30: 0 | V30: 0 | W30: 0 | X30: 0 | Y30: 8
A31: 10.11.2014 | B31: Митрова | C31: 715311.042 | D31: 020 | E31: 3.8793 | F31: 100 | G31: 0.3 | H31: 8 | I31: 0 | J31: 0 | K31: 0 | L31: 0 | M31: 0 | N31: 0 | O31: 0 | P31: 0 | Q31: 0 | R31: 0 | S31: 0 | T31: 0 | U31: 0 | V31: 0 | W31: 0 | X31: 0 | Y31: 8
A32: 10.11.2014 | B32: Сысоев | C32: 715314.008 | D32: 020 | E32: 1.9 | F32: 43 | H32: 8 | I32: 0 | J32: 0 | K32: 0 | L32: 0 | M32: 0 | N32: 0 | O32: 0 | P32: 0 | Q32: 0 | R32: 0 | S32: 0 | T32: 0 | U32: 0 | V32: 0 | W32: 0 | X32: 0 | Y32: 8
A33: 10.11.2014 | B33: Сысоев | C33: 715314.008 | D33: 030 | E33: 4.8 | F33: 65
A34: 10.11.2014 | B34: Лемонджава | C34: 715112.031 | D34: 030 | E34: 0.6793 | F34: 110 | H34: 8 | I34: 0 | J34: 0 | K34: 0 | L34: 0 | M34: 0 | N34: 0 | O34: 0 | P34: 0 | Q34: 0 | R34: 0 | S34: 0 | T34: 0 | U34: 0 | V34: 0 | W34: 0 | X34: 0 | Y34: 8
A35: 10.11.2014 | B35: Лемонджава | C35: 713351.004 | D35: 040 | E35: 1.8614 | F35: 207
A36: 10.11.2014 | B36: Лемонджава | C36: 715312.015 | D36: 040 | E36: 3.6406 | F36: 135
A37: 10.11.2014 | B37: Лемонджава | C37: 715112.029-01 | D37: 040 | E37: 0 | F37: 55
A38: 10.11.2014 | B38: Рыженкова | C38: 685165.001 | D38: 030 | E38: 2.24 | F38: 220 | H38: 8 | I38: 0 | J38: 0 | K38: 0 | L38: 0 | M38: 0 | N38: 0 | O38: 0 | P38: 0 | Q38: 0 | R38: 0 | S38: 0 | T38: 0 | U38: 0 | V38: 0 | W38: 0 | X38: 0 | Y38: 8
A39: 10.11.2014 | B39: Косарев | C39: 685543.003 | D39: 020 | E39: 6.3 | F39: 70 | H39: 8 | I39: 0 | J39: 0 | K39: 0 | L39: 0 | M39: 0 | N39: 0 | O39: 0 | P39: 0 | Q39: 0 | R39: 0 | S39: 0 | T39: 0 | U39: 0 | V39: 0 | W39: 0 | X39: 0 | Y39: 8
A40: 10.11.2014 | B40: Косарев | C40: 685543.003 | D40: 030 | E40: 1.33 | F40: 70
A41: 10.11.2014 | B41: Яковлев | C41: 304552.068 | D41: 020 | E41: 2.241 | F41: 124 | H41: 8 | I41: 0 | J41: 0 | K41: 0 | L41: 0 | M41: 0 | N41: 0 | O41: 0 | P41: 0 | Q41: 0 | R41: 0 | S41: 0 | T41: 0 | U41: 0 | V41: 0 | W41: 0 | X41: 0 | Y41: 8
A42: 10.11.2014 | B42: Яковлев | C42: 304552.068 | D42: 030 | E42: 0.1861 | F42: 124
A43: 10.11.2014 | B43: Яковлев | C43: 303763.008 | D43: 020 | E43: 1.457 | F43: 130
A44: 11.11.2014 | B44: БригадаСверл | C44: 713142.006 | D44: 030 | E44: 1.4 | F44: 160 | H44: 16 | I44: 0 | J44: 0 | K44: 0 | L44: 0 | M44: 0 | N44: 0 | O44: 0 | P44: 0 | Q44: 0 | R44: 0 | S44: 0 | T44: 0 | U44: 0 | V44: 0 | W44: 0 | X44: 0 | Y44: 16
A45: 11.11.2014 | B45: БригадаСверл | C45: 746112.020-01 | D45: 070 (030) | E45: 1.425 | F45: 150
A46: 11.11.2014 | B46: БригадаСверл | C46: 746112.020-01 | D46: 080 (040) | E46: 1.425 | F46: 50
A47: 11.11.2014 | B47: БригадаСверл | C47: 301716.032 | D47: 050 (020) | E47: 0.2356 | F47: 35
A48: 11.11.2014 | B48: БригадаСверл | C48: 301313.073 | D48: 010 | E48: 0.6118 | F48: 4
A49: 11.11.2014 | B49: БригадаСверл | C49: 301313.073 | D49: 020 | E49: 0.95 | F49: 4
A50: 11.11.2014 | B50: БригадаСверл | C50: 301561.025 | D50: 010 | E50: 0.3 | F50: 80
A51: 11.11.2014 | B51: БригадаСверл | C51: 301561.025 | D51: 020 | E51: 0.56 | F51: 80
A52: 11.11.2014 | B52: БригадаСверл | C52: 301561.032 | D52: 010 | E52: 0.3467 | F52: 80
A53: 11.11.2014 | B53: БригадаСверл | C53: 301561.032 | D53: 020 | E53: 0.3371 | F53: 80
A54: 11.11.2014 | B54: БригадаСверл | C54: 301561.032 | D54: 030 | E54: 0.42 | F54: 80
A55: 11.11.2014 | B55: БригадаСверл | C55: 753183.001 | D55: 080 | E55: 1.63 | F55: 90
A56: 11.11.2014 | B56: БригадаСверл | C56: 753183.001 | D56: 110 | E56: 0.4 | F56: 90
A57: 11.11.2014 | B57: Михеева | C57: 304591.042-01 | D57: 010 | E57: 0.6024 | F57: 700 | H57: 8 | I57: 0 | J57: 0 | K57: 0 | L57: 0 | M57: 0 | N57: 0 | O57: 0 | P57: 0 | Q57: 0 | R57: 0 | S57: 0 | T57: 0 | U57: 0 | V57: 0 | W57: 0 | X57: 0 | Y57: 8
A58: 11.11.2014 | B58: Михеева | C58: 745261.058 | D58: 030 | E58: 0.1466 | F58: 1000
A59: 11.11.2014 | B59: Михеева | C59: 745343.006 | D59: 070 | E59: 0.4 | F59: 900 | H59: 8 | I59: 0 | J59: 0 | K59: 0 | L59: 0 | M59: 0 | N59: 0 | O59: 0 | P59: 0 | Q59: 0 | R59: 0 | S59: 0 | T59: 0 | U59: 0 | V59: 0 | W59: 0 | X59: 0 | Y59: 8
A60: 11.11.2014 | B60: Михеева | C60: 745343.014 | D60: 060 | E60: 0.4719 | F60: 320
A61: 11.11.2014 | B61: Михеева | C61: 745261.058 | D61: 030 | E61: 0.1466 | F61: 500
A62: 11.11.2014 | B62: БригадаШтамп | C62: 745343.005 | D62: 080 | E62: 0.4 | F62: 900 | H62: 24 | I62: 0 | J62: 0 | K62: 0 | L62: 0 | M62: 0 | N62: 0 | O62: 0 | P62: 0 | Q62: 0 | R62: 0 | S62: 0 | T62: 0 | U62: 0 | V62: 0 | W62: 0 | X62: 0 | Y62: 24
A63: 11.11.2014 | B63: БригадаШтамп | C63: 745343.013 | D63: 070 | E63: 0.4 | F63: 328
A64: 11.11.2014 | B64: БригадаШтамп | C64: 745461.007 | D64: 020 | E64: 0.08 | F64: 3180
A65: 11.11.2014 | B65: БригадаШтамп | C65: 741136.003 | D65: 040 | E65: 0.11 | F65: 2163
A66: 11.11.2014 | B66: БригадаШтамп | C66: 741122.001-01 | D66: 010 | E66: 0.1549 | F66: 208
A67: 11.11.2014 | B67: БригадаШтамп | C67: 741122.001-01 | D67: 040 | E67: 0.125 | F67: 208
A68: 11.11.2014 | B68: БригадаШтамп | C68: 757474.093 | D68: 020 | E68: 0.1156 | F68: 130
A69: 11.11.2014 | B69: БригадаШтамп | C69: 757474.093 | D69: 030 | E69: 0.183 | F69: 130
A70: 11.11.2014 | B70: БригадаШтамп | C70: 685121.010 | D70: 010 | E70: 0.6238 | F70: 249
A71: 11.11.2014 | B71: БригадаШтамп | C71: 685121.010-02 | D71: 010 | E71: 0.6238 | F71: 620
A72: 11.11.2014 | B72: БригадаШтамп | C72: 741124.037 | D72: 040 | E72: 0.093 | F72: 280 | H72: 24 | I72: 0 | J72: 0 | K72: 0 | L72: 0 | M72: 0 | N72: 0 | O72: 0 | P72: 0 | Q72: 0 | R72: 0 | S72: 0 | T72: 0 | U72: 0 | V72: 0 | W72: 0 | X72: 0 | Y72: 24
A73: 11.11.2014 | B73: БригадаШтамп | C73: 745312.024 | D73: 060 | E73: 0.147 | F73: 402
A74: 11.11.2014 | B74: БригадаШтамп | C74: 745312.103 | D74: 040 | E74: 0.1348 | F74: 1052
A75: 11.11.2014 | B75: БригадаШтамп | C75: 301716.033 | D75: 010 | E75: 1.3636 | F75: 48
A76: 11.11.2014 | B76: БригадаШтамп | C76: 304591.142 | D76: 010 | E76: 1.3636 | F76: 32
A77: 11.11.2014 | B77: БригадаШтамп | C77: 304591.042-01 | D77: 010 | E77: 0.6024 | F77: 25
A78: 11.11.2014 | B78: БригадаШтамп | C78: 685165.001 | D78: 070 (010) | E78: 0.2729 | F78: 0
A79: 11.11.2014 | B79: БригадаШтамп | C79: 758491.320 | D79: 030 | E79: 0.0369 | F79: 15000
A80: 11.11.2014 | B80: БригадаШтамп | C80: 745446.003 | D80: 030 | E80: 0.2038 | F80: 458
A81: 11.11.2014 | B81: БригадаШтамп | C81: 745446.003 | D81: 040 | E81: 0.1725 | F81: 458
A82: 11.11.2014 | B82: БригадаШтамп | C82: 745242.003 | D82: 030 | E82: 0.1669 | F82: 508
A83: 11.11.2014 | B83: БригадаШтамп | C83: 745242.003 | D83: 040 | E83: 0.16 | F83: 508
A84: 11.11.2014 | B84: БригадаШтамп | C84: 725314.084 | D84: 020 | E84: 0.2989 | F84: 212
A85: 11.11.2014 | B85: БригадаШтамп | C85: 745261.058 | D85: 030 | E85: 0.1466 | F85: 2300
A86: 11.11.2014 | B86: Алехичев | C86: 303719.003 | D86: 060 (020) | E86: 7.3578 | F86: 60 | H86: 8 | I86: 0 | J86: 0 | K86: 0 | L86: 0 | M86: 0 | N86: 0 | O86: 0 | P86: 0 | Q86: 0 | R86: 0 | S86: 0 | T86: 0 | U86: 0 | V86: 0 | W86: 0 | X86: 0 | Y86: 8
A87: 11.11.2014 | B87: Алехичев | C87: 303719.003 | D87: 140 (100) | E87: 1.8 | F87: 100
A88: 11.11.2014 | B88: Иващенко | C88: 725314.011 | D88: 020 | E88: 0.7328 | F88: 700 | H88: 8 | I88: 0 | J88: 0 | K88: 0 | L88: 0 | M88: 0 | N88: 0 | O88: 0 | P88: 0 | Q88: 0 | R88: 0 | S88: 0 | T88: 0 | U88: 0 | V88: 0 | W88: 0 | X88: 0 | Y88: 8
A89: 11.11.2014 | B89: Подорванов | C89: 0 | E89: 0 | F89: 0 | H89: 0 | I89: 8 | J89: 0 | K89: 0 | L89: 8 | M89: 0 | N89: 0 | O89: 0 | P89: 0 | Q89: 0 | R89: 0 | S89: 0 | T89: 0 | U89: 0 | V89: 0 | W89: 0 | X89: 0 | Y89: 8
A90: 11.11.2014 | B90: Лыгин | C90: 753183.001 | D90: 040 | E90: 2 | F90: 100 | H90: 8 | I90: 0 | J90: 0 | K90: 0 | L90: 0 | M90: 0 | N90: 0 | O90: 0 | P90: 0 | Q90: 0 | R90: 0 | S90: 0 | T90: 0 | U90: 0 | V90: 0 | W90: 0 | X90: 0 | Y90: 8
A91: 11.11.2014 | B91: Лыгин | C91: 753183.001 | D91: 050 | E91: 0.16 | F91: 100
A92: 11.11.2014 | B92: Лыгин | C92: 753183.001 | D92: 060 | E92: 1.7 | F92: 180
A93: 11.11.2014 | B93: Лыгин | C93: 753183.001 | D93: 070 | E93: 0.2 | F93: 180
A94: 11.11.2014 | B94: Абросимов | C94: 715312.065 | D94: 030 | E94: 6.317 | F94: 76 | H94: 8 | I94: 0 | J94: 0 | K94: 0 | L94: 0 | M94: 0 | N94: 0 | O94: 0 | P94: 0 | Q94: 0 | R94: 0 | S94: 0 | T94: 0 | U94: 0 | V94: 0 | W94: 0 | X94: 0 | Y94: 8
A95: 11.11.2014 | B95: Сысоев | C95: 715314.008 | D95: 030 | E95: 4.8 | F95: 70 | H95: 8 | I95: 0 | J95: 0 | K95: 0 | L95: 0 | M95: 0 | N95: 0 | O95: 0 | P95: 0 | Q95: 0 | R95: 0 | S95: 0 | T95: 0 | U95: 0 | V95: 0 | W95: 0 | X95: 0 | Y95: 8
A96: 11.11.2014 | B96: Сысоев | C96: 713163.010 | D96: 020 | E96: 3.6632 | F96: 30
A97: 11.11.2014 | B97: Митрова | C97: 711141.054 | D97: 030 | E97: 1.03 | F97: 107 | H97: 8 | I97: 0 | J97: 0 | K97: 0 | L97: 0 | M97: 0 | N97: 0 | O97: 0 | P97: 0 | Q97: 0 | R97: 0 | S97: 0 | T97: 0 | U97: 0 | V97: 0 | W97: 0 | X97: 0 | Y97: 8
A98: 11.11.2014 | B98: Митрова | C98: 303763.008 | D98: 030 | E98: 1.2738 | F98: 167
A99: 11.11.2014 | B99: Лемонджава | C99: 715112.031 | D99: 030 | E99: 0.6793 | F99: 226 | H99: 8 | I99: 0 | J99: 0 | K99: 0 | L99: 0 | M99: 0 | N99: 0 | O99: 0 | P99: 0 | Q99: 0 | R99: 0 | S99: 0 | T99: 0 | U99: 0 | V99: 0 | W99: 0 | X99: 0 | Y99: 8
A100: 11.11.2014 | B100: Лемонджава | C100: 713351.004 | D100: 040 | E100: 1.8614 | F100: 215
A101: 11.11.2014 | B101: Лемонджава | C101: 715312.015 | D101: 040 | E101: 3.6406 | F101: 144
A102: 11.11.2014 | B102: Рыженкова | C102: 685165.001 | D102: 030 | E102: 2.24 | F102: 110 | H102: 8 | I102: 0 | J102: 0 | K102: 0 | L102: 0 | M102: 0 | N102: 0 | O102: 0 | P102: 0 | Q102: 0 | R102: 0 | S102: 0 | T102: 0 | U102: 0 | V102: 0 | W102: 0 | X102: 0 | Y102: 8
A103: 11.11.2014 | B103: Рыженкова | C103: 301714.107 | D103: 030 | E103: 2.1815 | F103: 110
A104: 11.11.2014 | B104: Яковлев | C104: 304552.151 | D104: 020 | E104: 1 | F104: 250 | H104: 8 | I104: 0 | J104: 0 | K104: 0 | L104: 0 | M104: 0 | N104: 0 | O104: 0 | P104: 0 | Q104: 0 | R104: 0 | S104: 0 | T104: 0 | U104: 0 | V104: 0 | W104: 0 | X104: 0 | Y104: 8
A105: 11.11.2014 | B105: Яковлев | C105: 301716.032 | D105: 020 | E105: 1.0033 | F105: 100
A106: 11.11.2014 | B106: Яковлев | C106: 301611.035 | D106: 020 | E106: 0.4743 | F106: 280
A107: 11.11.2014 | B107: Косарев | C107: 685543.002 | D107: 020 | E107: 6.3 | F107: 14 | H107: 8 | I107: 0 | J107: 0 | K107: 0 | L107: 0 | M107: 0 | N107: 0 | O107: 0 | P107: 0 | Q107: 0 | R107: 0 | S107: 0 | T107: 0 | U107: 0 | V107: 0 | W107: 0 | X107: 0 | Y107: 8
A108: 11.11.2014 | B108: Косарев | C108: 685543.002 | D108: 030 | E108: 1.33 | F108: 14
A109: 11.11.2014 | B109: Косарев | C109: 685543.003 | D109: 020 | E109: 6.3 | F109: 60
A110: 11.11.2014 | B110: Косарев | C110: 685543.003 | D110: 030 | E110: 1.33 | F110: 60
A111: 11.11.2014 | B111: Геворкян | C111: 753183.001 | D111: 020 | E111: 1.3 | F111: 80 | H111: 8 | I111: 0 | J111: 0 | K111: 0 | L111: 0 | M111: 0 | N111: 0 | O111: 0 | P111: 0 | Q111: 0 | R111: 0 | S111: 0 | T111: 0 | U111: 0 | V111: 0 | W111: 0 | X111: 0 | Y111: 8
A112: 11.11.2014 | B112: Геворкян | C112: 753183.001 | D112: 030 | E112: 6 | F112: 70
A113: 12.11.2014 | B113: БригадаСверл | C113: 745343.005 | D113: 070 | E113: 1.7828 | F113: 300 | H113: 24 | I113: 0 | J113: 0 | K113: 0 | L113: 0 | M113: 0 | N113: 0 | O113: 0 | P113: 0 | Q113: 0 | R113: 0 | S113: 0 | T113: 0 | U113: 0 | V113: 0 | W113: 0 | X113: 0 | Y113: 24
A114: 12.11.2014 | B114: БригадаСверл | C114: 745343.014 | D114: 050 | E114: 1.7828 | F114: 320
A115: 12.11.2014 | B115: БригадаСверл | C115: 745312.024 | D115: 050 | E115: 0.2054 | F115: 390
A116: 12.11.2014 | B116: БригадаСверл | C116: 753183.001 | D116: 080 | E116: 1.63 | F116: 149
A117: 12.11.2014 | B117: БригадаСверл | C117: 753183.001 | D117: 110 | E117: 0.4 | F117: 149
A118: 12.11.2014 | B118: БригадаСверл | C118: 301716.032 | D118: 050 (020) | E118: 0.2356 | F118: 30
A119: 12.11.2014 | B119: БригадаСверл | C119: 304597.074 | D119: 050 (020) | E119: 0.739 | F119: 43
A120: 12.11.2014 | B120: БригадаСверл | C120: 304597.074 | D120: 070 (040) | E120: 0.4 | F120: 43
A121: 12.11.2014 | B121: Алехичев | C121: 746714.031 | D121: 020 (080) | E121: 4.88 | F121: 110 | H121: 8 | I121: 0 | J121: 0 | K121: 0 | L121: 0 | M121: 0 | N121: 0 | O121: 0 | P121: 0 | Q121: 0 | R121: 0 | S121: 0 | T121: 0 | U121: 0 | V121: 0 | W121: 0 | X121: 0 | Y121: 8
A122: 12.11.2014 | B122: Александрова | C122: 715151.010.. | D122: 020 | E122: 5.6 | F122: 86 | H122: 8 | I122: 0 | J122: 0 | K122: 0 | L122: 0 | M122: 0 | N122: 0 | O122: 0 | P122: 0 | Q122: 0 | R122: 0 | S122: 0 | T122: 0 | U122: 0 | V122: 0 | W122: 0 | X122: 0 | Y122: 8
A123: 12.11.2014 | B123: Иващенко | C123: 725314.011 | D123: 020 | E123: 0.7328 | F123: 740 | H123: 8 | I123: 0 | J123: 0 | K123: 0 | L123: 0 | M123: 0 | N123: 0 | O123: 0 | P123: 0 | Q123: 0 | R123: 0 | S123: 0 | T123: 0 | U123: 0 | V123: 0 | W123: 0 | X123: 0 | Y123: 8
A124: 12.11.2014 | B124: Лыгин | C124: 753183.001 | D124: 040 | E124: 2 | F124: 40 | H124: 8 | I124: 0 | J124: 0 | K124: 0 | L124: 0 | M124: 0 | N124: 0 | O124: 0 | P124: 0 | Q124: 0 | R124: 0 | S124: 0 | T124: 0 | U124: 0 | V124: 0 | W124: 0 | X124: 0 | Y124: 8
A125: 12.11.2014 | B125: Лыгин | C125: 753183.001 | D125: 050 | E125: 0.16 | F125: 40
A126: 12.11.2014 | B126: Лыгин | C126: 753183.001 | D126: 060 | E126: 1.7 | F126: 140
A127: 12.11.2014 | B127: Лыгин | C127: 753183.001 | D127: 070 | E127: 0.2 | F127: 140
A128: 12.11.2014 | B128: Лыгин | C128: 713163.010 | D128: 030 | E128: 1.8 | F128: 43
A129: 12.11.2014 | B129: Лыгин | C129: 751721.003 | D129: 035 | E129: 3.248 | F129: 15
A130: 12.11.2014 | B130: Геворкян | C130: 753183.001 | D130: 020 | E130: 1.3 | F130: 70 | H130: 8 | I130: 0 | J130: 0 | K130: 0 | L130: 0 | M130: 0 | N130: 0 | O130: 0 | P130: 0 | Q130: 0 | R130: 0 | S130: 0 | T130: 0 | U130: 0 | V130: 0 | W130: 0 | X130: 0 | Y130: 8
A131: 12.11.2014 | B131: Геворкян | C131: 753183.001 | D131: 030 | E131: 6 | F131: 70
A132: 12.11.2014 | B132: Абросимов | C132: 715151.010.. | D132: 020 | E132: 5.6 | F132: 86 | H132: 8 | I132: 0 | J132: 0 | K132: 0 | L132: 0 | M132: 0 | N132: 0 | O132: 0 | P132: 0 | Q132: 0 | R132: 0 | S132: 0 | T132: 0 | U132: 0 | V132: 0 | W132: 0 | X132: 0 | Y132: 8
A133: 12.11.2014 | B133: Сысоев | C133: 713163.010 | D133: 020 | E133: 3.6632 | F133: 22 | H133: 8 | I133: 0 | J133: 0 | K133: 0 | L133: 0 | M133: 0 | N133: 0 | O133: 0 | P133: 0 | Q133: 0 | R133: 0 | S133: 0 | T133: 0 | U133: 0 | V133: 0 | W133: 0 | X133: 0 | Y133: 8
A134: 12.11.2014 | B134: Сысоев | C134: 713142.025 | D134: 020 | E134: 1.885 | F134: 100 | G134: 0.5
A135: 12.11.2014 | B135: Митрова | C135: 715511.079 | D135: 050 | E135: 1.9 | F135: 100 | H135: 8 | I135: 0 | J135: 0 | K135: 0 | L135: 0 | M135: 0 | N135: 0 | O135: 0 | P135: 0 | Q135: 0 | R135: 0 | S135: 0 | T135: 0 | U135: 0 | V135: 0 | W135: 0 | X135: 0 | Y135: 8
A136: 12.11.2014 | B136: Митрова | C136: 715111.006 | D136: 020 | E136: 1.8 | F136: 3
A137: 12.11.2014 | B137: Митрова | C137: 711141.054 | D137: 030 | E137: 1.03 | F137: 144
A138: 12.11.2014 | B138: Лемонджава | C138: 715112.031 | D138: 030 | E138: 0.6793 | F138: 212 | H138: 8 | I138: 0 | J138: 0 | K138: 0 | L138: 0 | M138: 0 | N138: 0 | O138: 0 | P138: 0 | Q138: 0 | R138: 0 | S138: 0 | T138: 0 | U138: 0 | V138: 0 | W138: 0 | X138: 0 | Y138: 8
A139: 12.11.2014 | B139: Лемонджава | C139: 713141.060 | D139: 040 | E139: 1.8857 | F139: 80
A140: 12.11.2014 | B140: Лемонджава | C140: 715312.015 | D140: 040 | E140: 3.6406 | F140: 139
A141: 12.11.2014 | B141: Рыженкова | C141: 746112.020-01 | D141: 070 (030) | E141: 1.425 | F141: 150 | H141: 8 | I141: 0 | J141: 0 | K141: 0 | L141: 0 | M141: 0 | N141: 0 | O141: 0 | P141: 0 | Q141: 0 | R141: 0 | S141: 0 | T141: 0 | U141: 0 | V141: 0 | W141: 0 | X141: 0 | Y141: 8
A142: 12.11.2014 | B142: Рыженкова | C142: 746112.020-01 | D142: 080 (040) | E142: 1.425 | F142: 150
A143: 12.11.2014 | B143: Рыженкова | C143: 745343.005 | D143: 070 | E143: 1.7828 | F143: 30
A144: 12.11.2014 | B144: Косарев | C144: 301228.021 | D144: 020 | E144: 5.9773 | F144: 80 | H144: 8 | I144: 0 | J144: 0 | K144: 0 | L144: 0 | M144: 0 | N144: 0 | O144: 0 | P144: 0 | Q144: 0 | R144: 0 | S144: 0 | T144: 0 | U144: 0 | V144: 0 | W144: 0 | X144: 0 | Y144: 8
A145: 12.11.2014 | B145: Яковлев | C145: 303511.017 | D145: 020 | E145: 0.28 | F145: 11 | H145: 8 | I145: 0 | J145: 0 | K145: 0 | L145: 0 | M145: 0 | N145: 0 | O145: 0 | P145: 0 | Q145: 0 | R145: 0 | S145: 0 | T145: 0 | U145: 0 | V145: 0 | W145: 0 | X145: 0 | Y145: 8
A146: 12.11.2014 | B146: Яковлев | C146: 303511.017 | D146: 030 | E146: 1.7 | F146: 11
A147: 12.11.2014 | B147: Яковлев | C147: 304553.030 | D147: 020 | E147: 3.11 | F147: 15
A148: 12.11.2014 | B148: Яковлев | C148: 301714.042 | D148: 020 | E148: 1.1 | F148: 75
A149: 12.11.2014 | B149: Яковлев | C149: 304597.074 | D149: 020 | E149: 2.4314 | F149: 43
A150: 12.11.2014 | B150: Яковлев | C150: 303763.008 | D150: 020 | E150: 1.457 | F150: 66
A151: 12.11.2014 | B151: Яковлев | C151: 304274.044 | D151: 020 | E151: 0 | F151: 100
A152: 12.11.2014 | B152: Артамонов | C152: 303672.001-01 | D152: 020 | E152: 0.92 | F152: 300 | H152: 8 | I152: 0 | J152: 0 | K152: 0 | L152: 0 | M152: 0 | N152: 0 | O152: 0 | P152: 0 | Q152: 0 | R152: 0 | S152: 0 | T152: 0 | U152: 0 | V152: 0 | W152: 0 | X152: 0 | Y152: 8
A153: 12.11.2014 | B153: Артамонов | C153: 301314.109 | D153: 020 | E153: 1.4252 | F153: 150
A154: 13.11.2014 | B154: БригадаСверл | C154: 746142.019 | D154: 040 | E154: 5.24 | F154: 18 | H154: 24 | I154: 0 | J154: 0 | K154: 0 | L154: 0 | M154: 0 | N154: 0 | O154: 0 | P154: 0 | Q154: 0 | R154: 0 | S154: 0 | T154: 0 | U154: 0 | V154: 0 | W154: 0 | X154: 0 | Y154: 24
A155: 13.11.2014 | B155: БригадаСверл | C155: 746142.018-01 | D155: 040 | E155: 7.43 | F155: 18
A156: 13.11.2014 | B156: БригадаСверл | C156: 715112.031 | D156: 040 | E156: 0.082 | F156: 400
A157: 13.11.2014 | B157: БригадаСверл | C157: 715112.031 | D157: 050 | E157: 0.9 | F157: 470
A158: 13.11.2014 | B158: БригадаСверл | C158: 715112.031 | D158: 060 | E158: 0.89 | F158: 320
A159: 13.11.2014 | B159: БригадаСверл | C159: 301713.064 | D159: 050 | E159: 9.4416 | F159: 4
A160: 13.11.2014 | B160: БригадаСверл | C160: 301713.063 | D160: 050 | E160: 14.1624 | F160: 2
A161: 13.11.2014 | B161: БригадаСверл | C161: 301713.062 | D161: 050 | E161: 12.8136 | F161: 2
A162: 13.11.2014 | B162: БригадаСверл | C162: 301713.065 | D162: 050 | E162: 9.4416 | F162: 4
A163: 13.11.2014 | B163: БригадаСверл | C163: 301716.032 | D163: 050 (020) | E163: 0.2356 | F163: 73
A164: 13.11.2014 | B164: БригадаСверл | C164: 725314.084-01 | D164: 050 (020) | E164: 3.599 | F164: 62
A165: 13.11.2014 | B165: БригадаСверл | C165: 725314.084-01 | D165: 060 (030) | E165: 0.741 | F165: 62
A166: 13.11.2014 | B166: БригадаСверл | C166: 713142.025 | D166: 030 | E166: 0.85 | F166: 40
A167: 13.11.2014 | B167: БригадаСверл | C167: 713142.025 | D167: 050 | E167: 0.37 | F167: 40
A168: 13.11.2014 | B168: Алехичев | C168: 711143.003 | D168: 080 | E168: 0.75 | F168: 370 | H168: 4.5 | I168: 3.5 | J168: 0 | K168: 0 | L168: 3.5 | M168: 0 | N168: 0 | O168: 0 | P168: 0 | Q168: 0 | R168: 0 | S168: 0 | T168: 0 | U168: 0 | V168: 0 | W168: 0 | X168: 0 | Y168: 8
A169: 13.11.2014 | B169: Александрова | C169: 715151.010.. | D169: 020 | E169: 5.6 | F169: 86 | H169: 8 | I169: 0 | J169: 0 | K169: 0 | L169: 0 | M169: 0 | N169: 0 | O169: 0 | P169: 0 | Q169: 0 | R169: 0 | S169: 0 | T169: 0 | U169: 0 | V169: 0 | W169: 0 | X169: 0 | Y169: 8
A170: 13.11.2014 | B170: Лыгин | C170: 751721.003 | D170: 035 | E170: 3.248 | F170: 80 | H170: 8 | I170: 0 | J170: 0 | K170: 0 | L170: 0 | M170: 0 | N170: 0 | O170: 0 | P170: 0 | Q170: 0 | R170: 0 | S170: 0 | T170: 0 | U170: 0 | V170: 0 | W170: 0 | X170: 0 | Y170: 8
A171: 13.11.2014 | B171: Лыгин | C171: 751721.003 | D171: 040 | E171: 0.85 | F171: 80
A172: 13.11.2014 | B172: Геворкян | C172: 753183.001 | D172: 020 | E172: 1.3 | F172: 70 | H172: 8 | I172: 0 | J172: 0 | K172: 0 | L172: 0 | M172: 0 | N172: 0 | O172: 0 | P172: 0 | Q172: 0 | R172: 0 | S172: 0 | T172: 0 | U172: 0 | V172: 0 | W172: 0 | X172: 0 | Y172: 8
A173: 13.11.2014 | B173: Геворкян | C173: 753183.001 | D173: 030 | E173: 6 | F173: 70
A174: 13.11.2014 | B174: Абросимов | C174: 715151.010.. | D174: 020 | E174: 5.6 | F174: 86 | H174: 8 | I174: 0 | J174: 0 | K174: 0 | L174: 0 | M174: 0 | N174: 0 | O174: 0 | P174: 0 | Q174: 0 | R174: 0 | S174: 0 | T174: 0 | U174: 0 | V174: 0 | W174: 0 | X174: 0 | Y174: 8
A175: 13.11.2014 | B175: Сысоев | C175: 713142.025 | D175: 020 | E175: 1.885 | F175: 100 | H175: 8 | I175: 0 | J175: 0 | K175: 0 | L175: 0 | M175: 0 | N175: 0 | O175: 0 | P175: 0 | Q175: 0 | R175: 0 | S175: 0 | T175: 0 | U175: 0 | V175: 0 | W175: 0 | X175: 0 | Y175: 8
A176: 13.11.2014 | B176: Сысоев | C176: 303672.001-01 | D176: 045 (020) | E176: 1.61 | F176: 150
A177: 13.11.2014 | B177: Митрова | C177: 711141.054 | D177: 030 | E177: 1.03 | F177: 255 | H177: 8 | I177: 0 | J177: 0 | K177: 0 | L177: 0 | M177: 0 | N177: 0 | O177: 0 | P177: 0 | Q177: 0 | R177: 0 | S177: 0 | T177: 0 | U177: 0 | V177: 0 | W177: 0 | X177: 0 | Y177: 8
A178: 13.11.2014 | B178: Митрова | C178: 715114.028 | D178: 030 | E178: 2.65 | F178: 40
A179: 13.11.2014 | B179: Митрова | C179: 715111.065. | D179: 020/1 | E179: 1.382 | F179: 50
A180: 13.11.2014 | B180: Митрова | C180: 303763.008 | D180: 030 | E180: 1.2738 | F180: 33
A181: 13.11.2014 | B181: Лемонджава | C181: 715112.031 | D181: 030 | E181: 0.6793 | F181: 210 | H181: 8 | I181: 0 | J181: 0 | K181: 0 | L181: 0 | M181: 0 | N181: 0 | O181: 0 | P181: 0 | Q181: 0 | R181: 0 | S181: 0 | T181: 0 | U181: 0 | V181: 0 | W181: 0 | X181: 0 | Y181: 8
A182: 13.11.2014 | B182: Лемонджава | C182: 713141.060 | D182: 040 | E182: 1.8857 | F182: 205
A183: 13.11.2014 | B183: Лемонджава | C183: 715312.015 | D183: 040 | E183: 3.6406 | F183: 105
A184: 13.11.2014 | B184: Лемонджава | C184: 715112.028 | D184: 040 | E184: 0.7846 | F184: 230
A185: 13.11.2014 | B185: Иващенко | C185: 725314.011 | D185: 020 | E185: 0.7328 | F185: 500 | H185: 8 | I185: 0 | J185: 0 | K185: 0 | L185: 0 | M185: 0 | N185: 0 | O185: 0 | P185: 0 | Q185: 0 | R185: 0 | S185: 0 | T185: 0 | U185: 0 | V185: 0 | W185: 0 | X185: 0 | Y185: 8
A186: 13.11.2014 | B186: Иващенко | C186: 745226.009 | D186: 000 | E186: 2.83 | F186: 40
A187: 13.11.2014 | B187: Яковлев | C187: 301713.063 | D187: 020 | E187: 1.8104 | F187: 36 | H187: 8 | I187: 0 | J187: 0 | K187: 0 | L187: 0 | M187: 0 | N187: 0 | O187: 0 | P187: 0 | Q187: 0 | R187: 0 | S187: 0 | T187: 0 | U187: 0 | V187: 0 | W187: 0 | X187: 0 | Y187: 8
A188: 13.11.2014 | B188: Яковлев | C188: 685543.112 | D188: 020 | E188: 4.555 | F188: 37
A189: 13.11.2014 | B189: Яковлев | C189: 685543.112 | D189: 030 | E189: 0.7 | F189: 37
A190: 13.11.2014 | B190: Яковлев | C190: 303671.116 | D190: 020 | E190: 1.7527 | F190: 20
A191: 13.11.2014 | B191: Яковлев | C191: 685543.003 | D191: 020 | E191: 6.3 | F191: 28
A192: 13.11.2014 | B192: Яковлев | C192: 685543.003 | D192: 030 | E192: 1.33 | F192: 28
A193: 13.11.2014 | B193: Косарев | C193: 685543.006-01 | D193: 020 | E193: 4.0885 | F193: 100 | H193: 8 | I193: 0 | J193: 0 | K193: 0 | L193: 0 | M193: 0 | N193: 0 | O193: 0 | P193: 0 | Q193: 0 | R193: 0 | S193: 0 | T193: 0 | U193: 0 | V193: 0 | W193: 0 | X193: 0 | Y193: 8
A194: 13.11.2014 | B194: Косарев | C194: 685543.003 | D194: 020 | E194: 6.3 | F194: 10
A195: 13.11.2014 | B195: Косарев | C195: 685543.003 | D195: 030 | E195: 1.33 | F195: 10
A196: 13.11.2014 | B196: Артамонов | C196: 301314.109 | D196: 020 | E196: 1.4252 | F196: 150 | H196: 8 | I196: 0 | J196: 0 | K196: 0 | L196: 0 | M196: 0 | N196: 0 | O196: 0 | P196: 0 | Q196: 0 | R196: 0 | S196: 0 | T196: 0 | U196: 0 | V196: 0 | W196: 0 | X196: 0 | Y196: 8
A197: 13.11.2014 | B197: Артамонов | C197: 303734.015 | D197: 030 | E197: 0.842 | F197: 50
A198: 13.11.2014 | B198: Артамонов | C198: 303763.002 | D198: 020 | E198: 0.847 | F198: 200
A199: 13.11.2014 | B199: Артамонов | C199: 303671.001 | D199: 020 | E199: 0.75 | F199: 30
A200: 13.11.2014 | B200: Артамонов | C200: 304552.058-01 | D200: 020 | E200: 0.7 | F200: 50
... 427 more rows

Sheet Нормы
A1: Обозначение | B1: Номер | C1: Наименование | D1: Номер операции | E1: Наименование операции | F1: Содержание операции | G1: Код профессии | H1: Разряд | I1: Номер ставки | J1: Норма времени расчетная, мин
A2: ВИЛЕ | B2: 301116.002 | C2: Корпус | D2: 020 | E2: Токарно-винторезная | F2: Расточить отв., притупить острые кромки | G2: 19149 | H2: 3 | J2: 1
A3: ВИЛЕ | B3: 301116.002 | C3: Корпус | D3: 030 | E3: Вертикально-сверлильная | F3: Рассверлить отв., зенковать с двух сторон | G3: 18355 | H3: 3 | J3: 0.734
A4: ВИЛЕ | B4: 301116.041 | C4: Корпус | D4: 010 | E4: Запрессовывание | F4: Запрессовать втулку | G4: 18466-1 | H4: 2 | J4: 0.2832

Sheet Выполнено
A1: №детали | B1: №опер. | C1: Выполнено
A2: 301224.023 | B2: 020 | C2: =SUMPRODUCT((Сбор!$C$2:$C$627=A2)*(Сбор!D2:D627=B2)*(Сбор!F2:F627)) -> 30
A3: 304552.058-01 | B3: 060 | C3: =SUMPRODUCT((Сбор!$C$2:$C$627=A3)*(Сбор!D3:D628=B3)*(Сбор!F3:F628)) -> 4
A4: 753183.001 | B4: 020 | C4: =SUMPRODUCT((Сбор!$C$2:$C$627=A4)*(Сбор!D4:D629=B4)*(Сбор!F4:F629)) -> 1752
A5: 753183.001 | B5: 030 | C5: =SUMPRODUCT((Сбор!$C$2:$C$627=A5)*(Сбор!D5:D630=B5)*(Сбор!F5:F630)) -> 2879 | F5: Копируем столбцы C и D на этот лист-- Вкладка Данные--Удалить дубликаты. В столбце С на этом листе результат, так как там прописаны формулы.
A6: 711143.003 | B6: 020 | C6: =SUMPRODUCT((Сбор!$C$2:$C$627=A6)*(Сбор!D6:D631=B6)*(Сбор!F6:F631)) -> 70 | F6: Эти действия можно записать макрорекордером и повесить полученный макрос на кнопку "Заполнить"
A7: 304591.042-01 | B7: 010 | C7: =SUMPRODUCT((Сбор!$C$2:$C$627=A7)*(Сбор!D7:D632=B7)*(Сбор!F7:F632)) -> 0
A8: 745261.058 | B8: 030 | C8: =SUMPRODUCT((Сбор!$C$2:$C$627=A8)*(Сбор!D8:D633=B8)*(Сбор!F8:F633)) -> 238
A9: 758491.320 | B9: 020 | C9: =SUMPRODUCT((Сбор!$C$2:$C$627=A9)*(Сбор!D9:D634=B9)*(Сбор!F9:F634)) -> 0
A10: 745247.001-01 | B10: 040 | C10: =SUMPRODUCT((Сбор!$C$2:$C$627=A10)*(Сбор!D10:D635=B10)*(Сбор!F10:F635)) -> 0
A11: 741136.003 | B11: 020 | C11: =SUMPRODUCT((Сбор!$C$2:$C$627=A11)*(Сбор!D11:D636=B11)*(Сбор!F11:F636)) -> 100
A12: 303732.001 | B12: 070 (020) | C12: =SUMPRODUCT((Сбор!$C$2:$C$627=A12)*(Сбор!D12:D637=B12)*(Сбор!F12:F637)) -> 0
A13: 713142.006 | B13: 030 | C13: =SUMPRODUCT((Сбор!$C$2:$C$627=A13)*(Сбор!D13:D638=B13)*(Сбор!F13:F638)) -> 60
A14: 741424.097 | B14: 070 (040) | C14: =SUMPRODUCT((Сбор!$C$2:$C$627=A14)*(Сбор!D14:D639=B14)*(Сбор!F14:F639)) -> 0
A15: 303719.003 | B15: 060 (020) | C15: =SUMPRODUCT((Сбор!$C$2:$C$627=A15)*(Сбор!D15:D640=B15)*(Сбор!F15:F640)) -> 0
A16: 715151.010.. | B16: 020 | C16: =SUMPRODUCT((Сбор!$C$2:$C$627=A16)*(Сбор!D16:D641=B16)*(Сбор!F16:F641)) -> 77
A17: 715312.067 | B17: 030 | C17: =SUMPRODUCT((Сбор!$C$2:$C$627=A17)*(Сбор!D17:D642=B17)*(Сбор!F17:F642)) -> 0
A18: 741354.083 | B18: 050 | C18: =SUMPRODUCT((Сбор!$C$2:$C$627=A18)*(Сбор!D18:D643=B18)*(Сбор!F18:F643)) -> 0
A19: 753183.001 | B19: 040 | C19: =SUMPRODUCT((Сбор!$C$2:$C$627=A19)*(Сбор!D19:D644=B19)*(Сбор!F19:F644)) -> 1995
A20: 753183.001 | B20: 050 | C20: =SUMPRODUCT((Сбор!$C$2:$C$627=A20)*(Сбор!D20:D645=B20)*(Сбор!F20:F645)) -> 700
A21: 753183.001 | B21: 060 | C21: =SUMPRODUCT((Сбор!$C$2:$C$627=A21)*(Сбор!D21:D646=B21)*(Сбор!F21:F646)) -> 296
A22: 753183.001 | B22: 070 | C22: =SUMPRODUCT((Сбор!$C$2:$C$627=A22)*(Сбор!D22:D647=B22)*(Сбор!F22:F647)) -> 300
A23: 715311.037 | B23: 020 | C23: =SUMPRODUCT((Сбор!$C$2:$C$627=A23)*(Сбор!D23:D648=B23)*(Сбор!F23:F648)) -> 0
A24: 715345.013 | B24: 020 | C24: =SUMPRODUCT((Сбор!$C$2:$C$627=A24)*(Сбор!D24:D649=B24)*(Сбор!F24:F649)) -> 0
A25: 715311.042 | B25: 020 | C25: =SUMPRODUCT((Сбор!$C$2:$C$627=A25)*(Сбор!D25:D650=B25)*(Сбор!F25:F650)) -> 0
A26: 715314.008 | B26: 020 | C26: =SUMPRODUCT((Сбор!$C$2:$C$627=A26)*(Сбор!D26:D651=B26)*(Сбор!F26:F651)) -> 3208
A27: 715314.008 | B27: 030 | C27: =SUMPRODUCT((Сбор!$C$2:$C$627=A27)*(Сбор!D27:D652=B27)*(Сбор!F27:F652)) -> 1000
A28: 715112.031 | B28: 030 | C28: =SUMPRODUCT((Сбор!$C$2:$C$627=A28)*(Сбор!D28:D653=B28)*(Сбор!F28:F653)) -> 0
A29: 713351.004 | B29: 040 | C29: =SUMPRODUCT((Сбор!$C$2:$C$627=A29)*(Сбор!D29:D654=B29)*(Сбор!F29:F654)) -> 0
A30: 715312.015 | B30: 040 | C30: =SUMPRODUCT((Сбор!$C$2:$C$627=A30)*(Сбор!D30:D655=B30)*(Сбор!F30:F655)) -> 0
A31: 715112.029-01 | B31: 040 | C31: =SUMPRODUCT((Сбор!$C$2:$C$627=A31)*(Сбор!D31:D656=B31)*(Сбор!F31:F656)) -> 0
A32: 685165.001 | B32: 030 | C32: =SUMPRODUCT((Сбор!$C$2:$C$627=A32)*(Сбор!D32:D657=B32)*(Сбор!F32:F657)) -> 14
A33: 685543.003 | B33: 020 | C33: =SUMPRODUCT((Сбор!$C$2:$C$627=A33)*(Сбор!D33:D658=B33)*(Сбор!F33:F658)) -> 5869
A34: 685543.003 | B34: 030 | C34: =SUMPRODUCT((Сбор!$C$2:$C$627=A34)*(Сбор!D34:D659=B34)*(Сбор!F34:F659)) -> 4184
A35: 304552.068 | B35: 020 | C35: =SUMPRODUCT((Сбор!$C$2:$C$627=A35)*(Сбор!D35:D660=B35)*(Сбор!F35:F660)) -> 0
A36: 304552.068 | B36: 030 | C36: =SUMPRODUCT((Сбор!$C$2:$C$627=A36)*(Сбор!D36:D661=B36)*(Сбор!F36:F661)) -> 0
A37: 303763.008 | B37: 020 | C37: =SUMPRODUCT((Сбор!$C$2:$C$627=A37)*(Сбор!D37:D662=B37)*(Сбор!F37:F662)) -> 622
A38: 746112.020-01 | B38: 070 (030) | C38: =SUMPRODUCT((Сбор!$C$2:$C$627=A38)*(Сбор!D38:D663=B38)*(Сбор!F38:F663)) -> 0
A39: 746112.020-01 | B39: 080 (040) | C39: =SUMPRODUCT((Сбор!$C$2:$C$627=A39)*(Сбор!D39:D664=B39)*(Сбор!F39:F664)) -> 0
A40: 301716.032 | B40: 050 (020) | C40: =SUMPRODUCT((Сбор!$C$2:$C$627=A40)*(Сбор!D40:D665=B40)*(Сбор!F40:F665)) -> 0
A41: 301313.073 | B41: 010 | C41: =SUMPRODUCT((Сбор!$C$2:$C$627=A41)*(Сбор!D41:D666=B41)*(Сбор!F41:F666)) -> 0
A42: 301313.073 | B42: 020 | C42: =SUMPRODUCT((Сбор!$C$2:$C$627=A42)*(Сбор!D42:D667=B42)*(Сбор!F42:F667)) -> 700
A43: 301561.025 | B43: 010 | C43: =SUMPRODUCT((Сбор!$C$2:$C$627=A43)*(Сбор!D43:D668=B43)*(Сбор!F43:F668)) -> 0
A44: 301561.025 | B44: 020 | C44: =SUMPRODUCT((Сбор!$C$2:$C$627=A44)*(Сбор!D44:D669=B44)*(Сбор!F44:F669)) -> 0
A45: 301561.032 | B45: 010 | C45: =SUMPRODUCT((Сбор!$C$2:$C$627=A45)*(Сбор!D45:D670=B45)*(Сбор!F45:F670)) -> 0
A46: 301561.032 | B46: 020 | C46: =SUMPRODUCT((Сбор!$C$2:$C$627=A46)*(Сбор!D46:D671=B46)*(Сбор!F46:F671)) -> 30
A47: 301561.032 | B47: 030 | C47: =SUMPRODUCT((Сбор!$C$2:$C$627=A47)*(Сбор!D47:D672=B47)*(Сбор!F47:F672)) -> 500
A48: 753183.001 | B48: 080 | C48: =SUMPRODUCT((Сбор!$C$2:$C$627=A48)*(Сбор!D48:D673=B48)*(Сбор!F48:F673)) -> 0
A49: 753183.001 | B49: 110 | C49: =SUMPRODUCT((Сбор!$C$2:$C$627=A49)*(Сбор!D49:D674=B49)*(Сбор!F49:F674)) -> 0
A50: 745343.006 | B50: 070 | C50: =SUMPRODUCT((Сбор!$C$2:$C$627=A50)*(Сбор!D50:D675=B50)*(Сбор!F50:F675)) -> 0
A51: 745343.014 | B51: 060 | C51: =SUMPRODUCT((Сбор!$C$2:$C$627=A51)*(Сбор!D51:D676=B51)*(Сбор!F51:F676)) -> 0
A52: 745343.005 | B52: 080 | C52: =SUMPRODUCT((Сбор!$C$2:$C$627=A52)*(Сбор!D52:D677=B52)*(Сбор!F52:F677)) -> 0
A53: 745343.013 | B53: 070 | C53: =SUMPRODUCT((Сбор!$C$2:$C$627=A53)*(Сбор!D53:D678=B53)*(Сбор!F53:F678)) -> 0
A54: 745461.007 | B54: 020 | C54: =SUMPRODUCT((Сбор!$C$2:$C$627=A54)*(Сбор!D54:D679=B54)*(Сбор!F54:F679)) -> 0
A55: 741136.003 | B55: 040 | C55: =SUMPRODUCT((Сбор!$C$2:$C$627=A55)*(Сбор!D55:D680=B55)*(Сбор!F55:F680)) -> 208
A56: 741122.001-01 | B56: 010 | C56: =SUMPRODUCT((Сбор!$C$2:$C$627=A56)*(Сбор!D56:D681=B56)*(Сбор!F56:F681)) -> 0
A57: 741122.001-01 | B57: 040 | C57: =SUMPRODUCT((Сбор!$C$2:$C$627=A57)*(Сбор!D57:D682=B57)*(Сбор!F57:F682)) -> 0
A58: 757474.093 | B58: 020 | C58: =SUMPRODUCT((Сбор!$C$2:$C$627=A58)*(Сбор!D58:D683=B58)*(Сбор!F58:F683)) -> 0
A59: 757474.093 | B59: 030 | C59: =SUMPRODUCT((Сбор!$C$2:$C$627=A59)*(Сбор!D59:D684=B59)*(Сбор!F59:F684)) -> 0
A60: 685121.010 | B60: 010 | C60: =SUMPRODUCT((Сбор!$C$2:$C$627=A60)*(Сбор!D60:D685=B60)*(Сбор!F60:F685)) -> 0
A61: 685121.010-02 | B61: 010 | C61: =SUMPRODUCT((Сбор!$C$2:$C$627=A61)*(Сбор!D61:D686=B61)*(Сбор!F61:F686)) -> 0
A62: 741124.037 | B62: 040 | C62: =SUMPRODUCT((Сбор!$C$2:$C$627=A62)*(Сбор!D62:D687=B62)*(Сбор!F62:F687)) -> 0
A63: 745312.024 | B63: 060 | C63: =SUMPRODUCT((Сбор!$C$2:$C$627=A63)*(Сбор!D63:D688=B63)*(Сбор!F63:F688)) -> 0
A64: 745312.103 | B64: 040 | C64: =SUMPRODUCT((Сбор!$C$2:$C$627=A64)*(Сбор!D64:D689=B64)*(Сбор!F64:F689)) -> 0
A65: 301716.033 | B65: 010 | C65: =SUMPRODUCT((Сбор!$C$2:$C$627=A65)*(Сбор!D65:D690=B65)*(Сбор!F65:F690)) -> 0
A66: 304591.142 | B66: 010 | C66: =SUMPRODUCT((Сбор!$C$2:$C$627=A66)*(Сбор!D66:D691=B66)*(Сбор!F66:F691)) -> 0
A67: 685165.001 | B67: 070 (010) | C67: =SUMPRODUCT((Сбор!$C$2:$C$627=A67)*(Сбор!D67:D692=B67)*(Сбор!F67:F692)) -> 0
A68: 758491.320 | B68: 030 | C68: =SUMPRODUCT((Сбор!$C$2:$C$627=A68)*(Сбор!D68:D693=B68)*(Сбор!F68:F693)) -> 0
A69: 745446.003 | B69: 030 | C69: =SUMPRODUCT((Сбор!$C$2:$C$627=A69)*(Сбор!D69:D694=B69)*(Сбор!F69:F694)) -> 0
A70: 745446.003 | B70: 040 | C70: =SUMPRODUCT((Сбор!$C$2:$C$627=A70)*(Сбор!D70:D695=B70)*(Сбор!F70:F695)) -> 0
A71: 745242.003 | B71: 030 | C71: =SUMPRODUCT((Сбор!$C$2:$C$627=A71)*(Сбор!D71:D696=B71)*(Сбор!F71:F696)) -> 0
A72: 745242.003 | B72: 040 | C72: =SUMPRODUCT((Сбор!$C$2:$C$627=A72)*(Сбор!D72:D697=B72)*(Сбор!F72:F697)) -> 0
A73: 725314.084 | B73: 020 | C73: =SUMPRODUCT((Сбор!$C$2:$C$627=A73)*(Сбор!D73:D698=B73)*(Сбор!F73:F698)) -> 0
A74: 303719.003 | B74: 140 (100) | C74: =SUMPRODUCT((Сбор!$C$2:$C$627=A74)*(Сбор!D74:D699=B74)*(Сбор!F74:F699)) -> 0
A75: 725314.011 | B75: 020 | C75: =SUMPRODUCT((Сбор!$C$2:$C$627=A75)*(Сбор!D75:D700=B75)*(Сбор!F75:F700)) -> 337
A76: 0 | C76: =SUMPRODUCT((Сбор!$C$2:$C$627=A76)*(Сбор!D76:D701=B76)*(Сбор!F76:F701)) -> 0
A77: 715312.065 | B77: 030 | C77: =SUMPRODUCT((Сбор!$C$2:$C$627=A77)*(Сбор!D77:D702=B77)*(Сбор!F77:F702)) -> 0
A78: 713163.010 | B78: 020 | C78: =SUMPRODUCT((Сбор!$C$2:$C$627=A78)*(Сбор!D78:D703=B78)*(Сбор!F78:F703)) -> 100
A79: 711141.054 | B79: 030 | C79: =SUMPRODUCT((Сбор!$C$2:$C$627=A79)*(Сбор!D79:D704=B79)*(Сбор!F79:F704)) -> 0
A80: 303763.008 | B80: 030 | C80: =SUMPRODUCT((Сбор!$C$2:$C$627=A80)*(Сбор!D80:D705=B80)*(Сбор!F80:F705)) -> 622
A81: 301714.107 | B81: 030 | C81: =SUMPRODUCT((Сбор!$C$2:$C$627=A81)*(Сбор!D81:D706=B81)*(Сбор!F81:F706)) -> 0
A82: 304552.151 | B82: 020 | C82: =SUMPRODUCT((Сбор!$C$2:$C$627=A82)*(Сбор!D82:D707=B82)*(Сбор!F82:F707)) -> 0
A83: 301716.032 | B83: 020 | C83: =SUMPRODUCT((Сбор!$C$2:$C$627=A83)*(Сбор!D83:D708=B83)*(Сбор!F83:F708)) -> 30
A84: 301611.035 | B84: 020 | C84: =SUMPRODUCT((Сбор!$C$2:$C$627=A84)*(Сбор!D84:D709=B84)*(Сбор!F84:F709)) -> 37
A85: 685543.002 | B85: 020 | C85: =SUMPRODUCT((Сбор!$C$2:$C$627=A85)*(Сбор!D85:D710=B85)*(Сбор!F85:F710)) -> 48
A86: 685543.002 | B86: 030 | C86: =SUMPRODUCT((Сбор!$C$2:$C$627=A86)*(Сбор!D86:D711=B86)*(Сбор!F86:F711)) -> 28
A87: 745343.005 | B87: 070 | C87: =SUMPRODUCT((Сбор!$C$2:$C$627=A87)*(Сбор!D87:D712=B87)*(Сбор!F87:F712)) -> 30
A88: 745343.014 | B88: 050 | C88: =SUMPRODUCT((Сбор!$C$2:$C$627=A88)*(Сбор!D88:D713=B88)*(Сбор!F88:F713)) -> 0
A89: 745312.024 | B89: 050 | C89: =SUMPRODUCT((Сбор!$C$2:$C$627=A89)*(Сбор!D89:D714=B89)*(Сбор!F89:F714)) -> 2
A90: 304597.074 | B90: 050 (020) | C90: =SUMPRODUCT((Сбор!$C$2:$C$627=A90)*(Сбор!D90:D715=B90)*(Сбор!F90:F715)) -> 0
A91: 304597.074 | B91: 070 (040) | C91: =SUMPRODUCT((Сбор!$C$2:$C$627=A91)*(Сбор!D91:D716=B91)*(Сбор!F91:F716)) -> 0
A92: 746714.031 | B92: 020 (080) | C92: =SUMPRODUCT((Сбор!$C$2:$C$627=A92)*(Сбор!D92:D717=B92)*(Сбор!F92:F717)) -> 0
A93: 713163.010 | B93: 030 | C93: =SUMPRODUCT((Сбор!$C$2:$C$627=A93)*(Сбор!D93:D718=B93)*(Сбор!F93:F718)) -> 0
A94: 751721.003 | B94: 035 | C94: =SUMPRODUCT((Сбор!$C$2:$C$627=A94)*(Сбор!D94:D719=B94)*(Сбор!F94:F719)) -> 0
A95: 713142.025 | B95: 020 | C95: =SUMPRODUCT((Сбор!$C$2:$C$627=A95)*(Сбор!D95:D720=B95)*(Сбор!F95:F720)) -> 112
A96: 715511.079 | B96: 050 | C96: =SUMPRODUCT((Сбор!$C$2:$C$627=A96)*(Сбор!D96:D721=B96)*(Сбор!F96:F721)) -> 0
A97: 715111.006 | B97: 020 | C97: =SUMPRODUCT((Сбор!$C$2:$C$627=A97)*(Сбор!D97:D722=B97)*(Сбор!F97:F722)) -> 0
A98: 713141.060 | B98: 040 | C98: =SUMPRODUCT((Сбор!$C$2:$C$627=A98)*(Сбор!D98:D723=B98)*(Сбор!F98:F723)) -> 2370
A99: 301228.021 | B99: 020 | C99: =SUMPRODUCT((Сбор!$C$2:$C$627=A99)*(Сбор!D99:D724=B99)*(Сбор!F99:F724)) -> 1708
A100: 303511.017 | B100: 020 | C100: =SUMPRODUCT((Сбор!$C$2:$C$627=A100)*(Сбор!D100:D725=B100)*(Сбор!F100:F725)) -> 0
A101: 303511.017 | B101: 030 | C101: =SUMPRODUCT((Сбор!$C$2:$C$627=A101)*(Сбор!D101:D726=B101)*(Сбор!F101:F726)) -> 133
A102: 304553.030 | B102: 020 | C102: =SUMPRODUCT((Сбор!$C$2:$C$627=A102)*(Сбор!D102:D727=B102)*(Сбор!F102:F727)) -> 0
A103: 301714.042 | B103: 020 | C103: =SUMPRODUCT((Сбор!$C$2:$C$627=A103)*(Сбор!D103:D728=B103)*(Сбор!F103:F728)) -> 0
A104: 304597.074 | B104: 020 | C104: =SUMPRODUCT((Сбор!$C$2:$C$627=A104)*(Сбор!D104:D729=B104)*(Сбор!F104:F729)) -> 0
A105: 304274.044 | B105: 020 | C105: =SUMPRODUCT((Сбор!$C$2:$C$627=A105)*(Сбор!D105:D730=B105)*(Сбор!F105:F730)) -> 5
A106: 303672.001-01 | B106: 020 | C106: =SUMPRODUCT((Сбор!$C$2:$C$627=A106)*(Сбор!D106:D731=B106)*(Сбор!F106:F731)) -> 30
A107: 301314.109 | B107: 020 | C107: =SUMPRODUCT((Сбор!$C$2:$C$627=A107)*(Сбор!D107:D732=B107)*(Сбор!F107:F732)) -> 326
A108: 746142.019 | B108: 040 | C108: =SUMPRODUCT((Сбор!$C$2:$C$627=A108)*(Сбор!D108:D733=B108)*(Сбор!F108:F733)) -> 0
A109: 746142.018-01 | B109: 040 | C109: =SUMPRODUCT((Сбор!$C$2:$C$627=A109)*(Сбор!D109:D734=B109)*(Сбор!F109:F734)) -> 0
A110: 715112.031 | B110: 040 | C110: =SUMPRODUCT((Сбор!$C$2:$C$627=A110)*(Сбор!D110:D735=B110)*(Сбор!F110:F735)) -> 5513
A111: 715112.031 | B111: 050 | C111: =SUMPRODUCT((Сбор!$C$2:$C$627=A111)*(Сбор!D111:D736=B111)*(Сбор!F111:F736)) -> 1970
A112: 715112.031 | B112: 060 | C112: =SUMPRODUCT((Сбор!$C$2:$C$627=A112)*(Сбор!D112:D737=B112)*(Сбор!F112:F737)) -> 267
A113: 301713.064 | B113: 050 | C113: =SUMPRODUCT((Сбор!$C$2:$C$627=A113)*(Сбор!D113:D738=B113)*(Сбор!F113:F738)) -> 0
A114: 301713.063 | B114: 050 | C114: =SUMPRODUCT((Сбор!$C$2:$C$627=A114)*(Сбор!D114:D739=B114)*(Сбор!F114:F739)) -> 0
A115: 301713.062 | B115: 050 | C115: =SUMPRODUCT((Сбор!$C$2:$C$627=A115)*(Сбор!D115:D740=B115)*(Сбор!F115:F740)) -> 0
A116: 301713.065 | B116: 050 | C116: =SUMPRODUCT((Сбор!$C$2:$C$627=A116)*(Сбор!D116:D741=B116)*(Сбор!F116:F741)) -> 0
A117: 725314.084-01 | B117: 050 (020) | C117: =SUMPRODUCT((Сбор!$C$2:$C$627=A117)*(Сбор!D117:D742=B117)*(Сбор!F117:F742)) -> 0
A118: 725314.084-01 | B118: 060 (030) | C118: =SUMPRODUCT((Сбор!$C$2:$C$627=A118)*(Сбор!D118:D743=B118)*(Сбор!F118:F743)) -> 0
A119: 713142.025 | B119: 030 | C119: =SUMPRODUCT((Сбор!$C$2:$C$627=A119)*(Сбор!D119:D744=B119)*(Сбор!F119:F744)) -> 0
A120: 713142.025 | B120: 050 | C120: =SUMPRODUCT((Сбор!$C$2:$C$627=A120)*(Сбор!D120:D745=B120)*(Сбор!F120:F745)) -> 170
A121: 711143.003 | B121: 080 | C121: =SUMPRODUCT((Сбор!$C$2:$C$627=A121)*(Сбор!D121:D746=B121)*(Сбор!F121:F746)) -> 0
A122: 751721.003 | B122: 040 | C122: =SUMPRODUCT((Сбор!$C$2:$C$627=A122)*(Сбор!D122:D747=B122)*(Сбор!F122:F747)) -> 235
A123: 303672.001-01 | B123: 045 (020) | C123: =SUMPRODUCT((Сбор!$C$2:$C$627=A123)*(Сбор!D123:D748=B123)*(Сбор!F123:F748)) -> 0
A124: 715114.028 | B124: 030 | C124: =SUMPRODUCT((Сбор!$C$2:$C$627=A124)*(Сбор!D124:D749=B124)*(Сбор!F124:F749)) -> 114
A125: 715111.065. | B125: 020/1 | C125: =SUMPRODUCT((Сбор!$C$2:$C$627=A125)*(Сбор!D125:D750=B125)*(Сбор!F125:F750)) -> 0
A126: 715112.028 | B126: 040 | C126: =SUMPRODUCT((Сбор!$C$2:$C$627=A126)*(Сбор!D126:D751=B126)*(Сбор!F126:F751)) -> 807
A127: 745226.009 | B127: 000 | C127: =SUMPRODUCT((Сбор!$C$2:$C$627=A127)*(Сбор!D127:D752=B127)*(Сбор!F127:F752)) -> 0
A128: 301713.063 | B128: 020 | C128: =SUMPRODUCT((Сбор!$C$2:$C$627=A128)*(Сбор!D128:D753=B128)*(Сбор!F128:F753)) -> 2
A129: 685543.112 | B129: 020 | C129: =SUMPRODUCT((Сбор!$C$2:$C$627=A129)*(Сбор!D129:D754=B129)*(Сбор!F129:F754)) -> 143
A130: 685543.112 | B130: 030 | C130: =SUMPRODUCT((Сбор!$C$2:$C$627=A130)*(Сбор!D130:D755=B130)*(Сбор!F130:F755)) -> 0
A131: 303671.116 | B131: 020 | C131: =SUMPRODUCT((Сбор!$C$2:$C$627=A131)*(Сбор!D131:D756=B131)*(Сбор!F131:F756)) -> 0
A132: 685543.006-01 | B132: 020 | C132: =SUMPRODUCT((Сбор!$C$2:$C$627=A132)*(Сбор!D132:D757=B132)*(Сбор!F132:F757)) -> 0
A133: 303734.015 | B133: 030 | C133: =SUMPRODUCT((Сбор!$C$2:$C$627=A133)*(Сбор!D133:D758=B133)*(Сбор!F133:F758)) -> 0
A134: 303763.002 | B134: 020 | C134: =SUMPRODUCT((Сбор!$C$2:$C$627=A134)*(Сбор!D134:D759=B134)*(Сбор!F134:F759)) -> 5100
A135: 303671.001 | B135: 020 | C135: =SUMPRODUCT((Сбор!$C$2:$C$627=A135)*(Сбор!D135:D760=B135)*(Сбор!F135:F760)) -> 1310
A136: 304552.058-01 | B136: 020 | C136: =SUMPRODUCT((Сбор!$C$2:$C$627=A136)*(Сбор!D136:D761=B136)*(Сбор!F136:F761)) -> 125
A137: 715114.028 | B137: 060 | C137: =SUMPRODUCT((Сбор!$C$2:$C$627=A137)*(Сбор!D137:D762=B137)*(Сбор!F137:F762)) -> 0
A138: 715114.028 | B138: 070 | C138: =SUMPRODUCT((Сбор!$C$2:$C$627=A138)*(Сбор!D138:D763=B138)*(Сбор!F138:F763)) -> 0
A139: 303732.006 | B139: 050 | C139: =SUMPRODUCT((Сбор!$C$2:$C$627=A139)*(Сбор!D139:D764=B139)*(Сбор!F139:F764)) -> 0
A140: 303732.006 | B140: 060 | C140: =SUMPRODUCT((Сбор!$C$2:$C$627=A140)*(Сбор!D140:D765=B140)*(Сбор!F140:F765)) -> 0
A141: 746112.171 | B141: 050 | C141: =SUMPRODUCT((Сбор!$C$2:$C$627=A141)*(Сбор!D141:D766=B141)*(Сбор!F141:F766)) -> 0
A142: 745222.179 | B142: 060 | C142: =SUMPRODUCT((Сбор!$C$2:$C$627=A142)*(Сбор!D142:D767=B142)*(Сбор!F142:F767)) -> 0
A143: 745222.178 | B143: 060 | C143: =SUMPRODUCT((Сбор!$C$2:$C$627=A143)*(Сбор!D143:D768=B143)*(Сбор!F143:F768)) -> 0
A144: 746142.029-01 | B144: 040 | C144: =SUMPRODUCT((Сбор!$C$2:$C$627=A144)*(Сбор!D144:D769=B144)*(Сбор!F144:F769)) -> 0
A145: 746112.175 | B145: 040 | C145: =SUMPRODUCT((Сбор!$C$2:$C$627=A145)*(Сбор!D145:D770=B145)*(Сбор!F145:F770)) -> 0
A146: 301713.065-01 | B146: 050 | C146: =SUMPRODUCT((Сбор!$C$2:$C$627=A146)*(Сбор!D146:D771=B146)*(Сбор!F146:F771)) -> 0
A147: 301713.060-05 | B147: 010 | C147: =SUMPRODUCT((Сбор!$C$2:$C$627=A147)*(Сбор!D147:D772=B147)*(Сбор!F147:F772)) -> 0
A148: 301713.060-05 | B148: 020 | C148: =SUMPRODUCT((Сбор!$C$2:$C$627=A148)*(Сбор!D148:D773=B148)*(Сбор!F148:F773)) -> 73
A149: 758584.057 | B149: 040 | C149: =SUMPRODUCT((Сбор!$C$2:$C$627=A149)*(Сбор!D149:D774=B149)*(Сбор!F149:F774)) -> 0
A150: 303672.001-01 | B150: 050 (030) | C150: =SUMPRODUCT((Сбор!$C$2:$C$627=A150)*(Сбор!D150:D775=B150)*(Сбор!F150:F775)) -> 0
A151: 303671.002 | B151: 050 (030) | C151: =SUMPRODUCT((Сбор!$C$2:$C$627=A151)*(Сбор!D151:D776=B151)*(Сбор!F151:F776)) -> 0
A152: 303672.001 | B152: 050 (030) | C152: =SUMPRODUCT((Сбор!$C$2:$C$627=A152)*(Сбор!D152:D777=B152)*(Сбор!F152:F777)) -> 0
A153: 301314.109 | B153: 080 | C153: =SUMPRODUCT((Сбор!$C$2:$C$627=A153)*(Сбор!D153:D778=B153)*(Сбор!F153:F778)) -> 0
A154: 711143.003 | B154: 050 | C154: =SUMPRODUCT((Сбор!$C$2:$C$627=A154)*(Сбор!D154:D779=B154)*(Сбор!F154:F779)) -> 147
A155: 711143.003 | B155: 060 | C155: =SUMPRODUCT((Сбор!$C$2:$C$627=A155)*(Сбор!D155:D780=B155)*(Сбор!F155:F780)) -> 25
A156: 746142.028 | B156: 050 | C156: =SUMPRODUCT((Сбор!$C$2:$C$627=A156)*(Сбор!D156:D781=B156)*(Сбор!F156:F781)) -> 0
A157: 746142.028 | B157: 060 | C157: =SUMPRODUCT((Сбор!$C$2:$C$627=A157)*(Сбор!D157:D782=B157)*(Сбор!F157:F782)) -> 0
A158: 746112.175 | B158: 050 | C158: =SUMPRODUCT((Сбор!$C$2:$C$627=A158)*(Сбор!D158:D783=B158)*(Сбор!F158:F783)) -> 0
A159: 746112.175 | B159: 060 | C159: =SUMPRODUCT((Сбор!$C$2:$C$627=A159)*(Сбор!D159:D784=B159)*(Сбор!F159:F784)) -> 0
A160: 715345.003. | B160: 010/1 | C160: =SUMPRODUCT((Сбор!$C$2:$C$627=A160)*(Сбор!D160:D785=B160)*(Сбор!F160:F785)) -> 0
A161: 303672.001 | B161: 045 (020) | C161: =SUMPRODUCT((Сбор!$C$2:$C$627=A161)*(Сбор!D161:D786=B161)*(Сбор!F161:F786)) -> 0
A162: 723112.056-01 | B162: 030 | C162: =SUMPRODUCT((Сбор!$C$2:$C$627=A162)*(Сбор!D162:D787=B162)*(Сбор!F162:F787)) -> 0
A163: 746142.029-01 | B163: 090 (050) | C163: =SUMPRODUCT((Сбор!$C$2:$C$627=A163)*(Сбор!D163:D788=B163)*(Сбор!F163:F788)) -> 0
A164: 746142.029 | B164: 090 (050) | C164: =SUMPRODUCT((Сбор!$C$2:$C$627=A164)*(Сбор!D164:D789=B164)*(Сбор!F164:F789)) -> 0
A165: 715114.028 | B165: 000 | C165: =SUMPRODUCT((Сбор!$C$2:$C$627=A165)*(Сбор!D165:D790=B165)*(Сбор!F165:F790)) -> 0
A166: 303732.006 | B166: 020 | C166: =SUMPRODUCT((Сбор!$C$2:$C$627=A166)*(Сбор!D166:D791=B166)*(Сбор!F166:F791)) -> 2960
A167: 303671.117 | B167: 020 | C167: =SUMPRODUCT((Сбор!$C$2:$C$627=A167)*(Сбор!D167:D792=B167)*(Сбор!F167:F792)) -> 0
A168: 301561.103 | B168: 020 | C168: =SUMPRODUCT((Сбор!$C$2:$C$627=A168)*(Сбор!D168:D793=B168)*(Сбор!F168:F793)) -> 0
A169: 303737.028 | B169: 020 | C169: =SUMPRODUCT((Сбор!$C$2:$C$627=A169)*(Сбор!D169:D794=B169)*(Сбор!F169:F794)) -> 256
A170: 303737.028 | B170: 030 | C170: =SUMPRODUCT((Сбор!$C$2:$C$627=A170)*(Сбор!D170:D795=B170)*(Сбор!F170:F795)) -> 200
A171: 303734.008 | B171: 020 | C171: =SUMPRODUCT((Сбор!$C$2:$C$627=A171)*(Сбор!D171:D796=B171)*(Сбор!F171:F796)) -> 305
A172: 303734.008 | B172: 030 | C172: =SUMPRODUCT((Сбор!$C$2:$C$627=A172)*(Сбор!D172:D797=B172)*(Сбор!F172:F797)) -> 0
A173: 301224.027 | B173: 020 | C173: =SUMPRODUCT((Сбор!$C$2:$C$627=A173)*(Сбор!D173:D798=B173)*(Сбор!F173:F798)) -> 0
A174: 758491.158 | B174: 020 | C174: =SUMPRODUCT((Сбор!$C$2:$C$627=A174)*(Сбор!D174:D799=B174)*(Сбор!F174:F799)) -> 0
A175: 757474.064 | B175: 020 | C175: =SUMPRODUCT((Сбор!$C$2:$C$627=A175)*(Сбор!D175:D800=B175)*(Сбор!F175:F800)) -> 140
A176: 745246.002 | B176: 020 | C176: =SUMPRODUCT((Сбор!$C$2:$C$627=A176)*(Сбор!D176:D801=B176)*(Сбор!F176:F801)) -> 28
A177: 301562.015 | B177: 005 | C177: =SUMPRODUCT((Сбор!$C$2:$C$627=A177)*(Сбор!D177:D802=B177)*(Сбор!F177:F802)) -> 0
A178: 301562.015 | B178: 010 | C178: =SUMPRODUCT((Сбор!$C$2:$C$627=A178)*(Сбор!D178:D803=B178)*(Сбор!F178:F803)) -> 0
A179: 301562.015-01 | B179: 005 | C179: =SUMPRODUCT((Сбор!$C$2:$C$627=A179)*(Сбор!D179:D804=B179)*(Сбор!F179:F804)) -> 0
A180: 301562.015-01 | B180: 010 | C180: =SUMPRODUCT((Сбор!$C$2:$C$627=A180)*(Сбор!D180:D805=B180)*(Сбор!F180:F805)) -> 0
A181: 301562.031 | B181: 005 | C181: =SUMPRODUCT((Сбор!$C$2:$C$627=A181)*(Сбор!D181:D806=B181)*(Сбор!F181:F806)) -> 0
A182: 301562.031 | B182: 010 | C182: =SUMPRODUCT((Сбор!$C$2:$C$627=A182)*(Сбор!D182:D807=B182)*(Сбор!F182:F807)) -> 0
A183: 754152.021 | B183: 020 | C183: =SUMPRODUCT((Сбор!$C$2:$C$627=A183)*(Сбор!D183:D808=B183)*(Сбор!F183:F808)) -> 0
A184: 745343.004 | B184: 020 | C184: =SUMPRODUCT((Сбор!$C$2:$C$627=A184)*(Сбор!D184:D809=B184)*(Сбор!F184:F809)) -> 63
A185: 745312.048 | B185: 040 | C185: =SUMPRODUCT((Сбор!$C$2:$C$627=A185)*(Сбор!D185:D810=B185)*(Сбор!F185:F810)) -> 0
A186: 745312.048 | B186: 050 | C186: =SUMPRODUCT((Сбор!$C$2:$C$627=A186)*(Сбор!D186:D811=B186)*(Сбор!F186:F811)) -> 0
A187: 303671.001 | B187: 060 (030) | C187: =SUMPRODUCT((Сбор!$C$2:$C$627=A187)*(Сбор!D187:D812=B187)*(Сбор!F187:F812)) -> 0
A188: 713342.005 | B188: 050 | C188: =SUMPRODUCT((Сбор!$C$2:$C$627=A188)*(Сбор!D188:D813=B188)*(Сбор!F188:F813)) -> 32
A189: 303734.015 | B189: 070 | C189: =SUMPRODUCT((Сбор!$C$2:$C$627=A189)*(Сбор!D189:D814=B189)*(Сбор!F189:F814)) -> 0
A190: 715112.026 | B190: 060 | C190: =SUMPRODUCT((Сбор!$C$2:$C$627=A190)*(Сбор!D190:D815=B190)*(Сбор!F190:F815)) -> 0
A191: 303734.015 | B191: 075 | C191: =SUMPRODUCT((Сбор!$C$2:$C$627=A191)*(Сбор!D191:D816=B191)*(Сбор!F191:F816)) -> 0
A192: 723113.002. | B192: 020/1 | C192: =SUMPRODUCT((Сбор!$C$2:$C$627=A192)*(Сбор!D192:D817=B192)*(Сбор!F192:F817)) -> 0
A193: 713142.006 | B193: 020 | C193: =SUMPRODUCT((Сбор!$C$2:$C$627=A193)*(Сбор!D193:D818=B193)*(Сбор!F193:F818)) -> 42
A194: 723112.001 | B194: 020 | C194: =SUMPRODUCT((Сбор!$C$2:$C$627=A194)*(Сбор!D194:D819=B194)*(Сбор!F194:F819)) -> 0
A195: 303671.002 | B195: 060 | C195: =SUMPRODUCT((Сбор!$C$2:$C$627=A195)*(Сбор!D195:D820=B195)*(Сбор!F195:F820)) -> 0
A196: 303671.001 | B196: 080 | C196: =SUMPRODUCT((Сбор!$C$2:$C$627=A196)*(Сбор!D196:D821=B196)*(Сбор!F196:F821)) -> 0
A197: 303673.002 | B197: 030 | C197: =SUMPRODUCT((Сбор!$C$2:$C$627=A197)*(Сбор!D197:D822=B197)*(Сбор!F197:F822)) -> 15
A198: 303671.001 | B198: 050 (020) | C198: =SUMPRODUCT((Сбор!$C$2:$C$627=A198)*(Сбор!D198:D823=B198)*(Сбор!F198:F823)) -> 0
A199: 303734.015 | B199: 060 | C199: =SUMPRODUCT((Сбор!$C$2:$C$627=A199)*(Сбор!D199:D824=B199)*(Сбор!F199:F824)) -> 0
A200: 304552.058-01 | B200: 030 (080) | C200: =SUMPRODUCT((Сбор!$C$2:$C$627=A200)*(Сбор!D200:D825=B200)*(Сбор!F200:F825)) -> 0
... 127 more rows
